bitfinex/quotes_SOLUSD_20250917
["timestamp","ask_amount","ask_price","bid_price","bid_amount"]
[1758067892307,1.8,236.29,236.21,0.1]
[1758067892504,1.8,236.29,236.21,14.91730513]
[1758067892815,1.13,236.29,236.26,13.59559401]
[1758067893116,1.13,236.29,236.22,13.59559401]
[1758067893117,1.13,236.29,236.25,26.0]
[1758067893318,1.13,236.29,236.26,13.59559401]
[1758067894126,1.13,236.29,236.27,12.70836422]
[1758067894323,1.13,236.29,236.28,4.2322668]
[1758067895308,1.13,236.29,236.26,4.23250341]
[1758067896208,1.13,236.29,236.25,32.94]
[1758067898039,1.13,236.29,236.26,32.94]
[1758067898529,4.23123947,236.34,236.26,32.94]
[1758067898530,4.51515746,236.36,236.27,4.23244593]
[1758067898912,26.0,236.37,236.27,4.23244593]
[1758067899112,30.23067381,236.37,236.27,4.23244593]
[1758067899427,30.23067381,236.37,236.27,14.81356075]
[1758067900807,26.0,236.37,236.27,14.81356075]
[1758067901027,26.0,236.37,236.28,13.59559401]
[1758067902529,26.0,236.37,236.28,26.30341991]
[1758067903131,26.0,236.37,236.3,13.59559401]
[1758067904833,26.0,236.37,236.31,4.2317295]
[1758067905935,26.0,236.37,236.32,37.13153575]
[1758067906113,26.0,236.37,236.32,32.9]
[1758067906435,26.0,236.37,236.32,37.13149009]
[1758067906815,4.2294028,236.44,236.32,37.13149009]
[1758067907025,1.0582989,236.43,236.32,37.13149009]
[1758067907226,26.0,236.41,236.33,32.88]
[1758067907925,30.22985737,236.42,236.34,4.23119235]
[1758067908333,4.22950121,236.44,236.34,14.80917322]
[1758067908519,4.22950121,236.44,236.34,4.23119235]
[1758067908923,26.0,236.41,236.35,32.88]
[1758067909715,26.0,236.41,236.32,4.2314355]
[1758067910042,26.0,236.41,236.34,4.23119235]
[1758067911529,30.22998798,236.41,236.32,10.5788761]
[1758067911726,30.22998798,236.41,236.35,32.88]
[1758067912128,26.0,236.44,236.35,32.88]
[1758067912440,1.05819719,236.43,236.36,32.86]
[1758067913720,4.22976059,236.42,236.36,32.86]
[1758067913932,26.0,236.41,236.36,32.86]
[1758067914534,26.0,236.41,236.36,37.09083347]
[1758067914741,0.1,236.49,236.36,37.09083347]
[1758067914924,5.28686366,236.48,236.37,32.98]
[1758067915122,1.34249939,236.47,236.33,13.59559401]
[1758067915424,26.0,236.45,236.33,13.59559401]
[1758067915624,26.0,236.41,236.34,37.21114906]
[1758067916323,26.0,236.41,236.33,13.59559401]
[1758067916324,26.0,236.4,236.3,4.23175389]
[1758067916630,1.0583801,236.39,236.31,32.98]
[1758067917335,1.34270324,236.39,236.31,32.98]
[1758067917942,0.28432314,236.35,236.25,33.09]
[1758067918153,27.34270324,236.35,236.25,33.09]
[1758067918322,1.0583801,236.34,236.25,33.09]
[1758067918524,27.0583801,236.34,236.25,33.09]
[1758067918840,27.0583801,236.34,236.25,37.32270107]
[1758067918841,26.0,236.34,236.25,37.32270107]
[1758067919020,26.0,236.35,236.25,37.32270107]
[1758067919225,26.0,236.35,236.25,47.90471165]
[1758067919625,26.0,236.35,236.26,13.59559401]
[1758067919825,26.0,236.35,236.27,4.23244593]
[1758067920026,26.0,236.35,236.29,0.03]
[1758067920221,4.23096415,236.36,236.29,0.03]
[1758067921846,4.23047635,236.38,236.29,0.03]
[1758067922025,1.05847878,236.37,236.29,0.03]
[1758067922936,1.05847878,236.36,236.29,33.09]
[1758067923154,1.05847878,236.35,236.29,33.09]
[1758067923445,1.05847878,236.34,236.29,0.03]
[1758067923945,4.23137138,236.33,236.29,0.03]
[1758067925737,4.23119235,236.34,236.29,0.03]
[1758067925937,1.05857268,236.33,236.29,0.03]
[1758067927029,5.28996256,236.33,236.29,0.03]
[1758067927224,4.23138988,236.33,236.29,0.03]
[1758067927949,26.06,236.39,236.29,13.62559401]
[1758067928146,1.05831184,236.38,236.29,13.62559401]
[1758067929052,1.05831184,236.38,236.3,4.23190859]
[1758067930328,30.29032791,236.39,236.3,4.23190859]
[1758067930637,1.05829514,236.38,236.3,4.23190859]
[1758067930838,30.29032791,236.39,236.3,4.23190859]
[1758067931147,26.0,236.36,236.29,0.03]
[1758067931350,27.05845074,236.35,236.29,0.03]
[1758067931525,1.05845074,236.34,236.29,0.03]
[1758067931726,1.05845074,236.33,236.29,0.03]
[1758067932031,1.05845074,236.32,236.29,0.03]
[1758067932233,26.0,236.35,236.29,0.03]
[1758067932434,1.05854184,236.34,236.29,0.03]
[1758067932645,1.05854184,236.33,236.29,0.03]
[1758067932834,1.05854184,236.32,236.29,0.03]
[1758067933039,4.23190859,236.3,236.29,0.03]
[1758067933242,5.29045043,236.3,236.29,0.03]
[1758067934447,26.0,236.27,236.22,0.03]
[1758067934633,1.05854184,236.26,236.22,0.03]
[1758067934838,1.05854184,236.25,236.22,0.03]
[1758067935042,26.0,236.25,236.22,0.03]
[1758067935237,1.0588631,236.24,236.22,0.03]
[1758067935437,30.23229077,236.28,236.22,0.03]
[1758067935739,1.05884772,236.27,236.22,0.03]
[1758067936044,26.0,236.25,236.22,0.03]
[1758067936347,1.05884754,236.24,236.22,0.03]
[1758067936528,14.81295777,236.28,236.22,0.03]
[1758067936729,1.0589098,236.27,236.22,0.03]
[1758067936929,4.23280423,236.25,236.22,0.03]
[1758067937260,1.0589098,236.24,236.22,0.03]
[1758067937452,1.05892533,236.23,236.22,0.03]
[1758067937633,26.0,236.26,236.22,0.03]
[1758067937835,1.0588789,236.25,236.22,0.03]
[1758067938051,1.0588789,236.24,236.22,0.03]
[1758067938359,26.0,236.26,236.22,0.03]
[1758067938659,1.05887875,236.25,236.22,0.03]
[1758067938861,1.05887875,236.24,236.22,0.03]
[1758067939158,5.29204134,236.23,236.22,0.03]
[1758067939348,5.2921486,236.23,236.22,0.03]
[1758067939551,1.05898601,236.23,236.22,0.03]
[1758067940065,1.05898601,236.24,236.22,0.03]
[1758067940272,30.23277973,236.26,236.22,0.03]
[1758067940444,1.0589548,236.25,236.22,0.03]
[1758067940653,1.0589548,236.24,236.22,0.03]
[1758067940856,1.0589548,236.23,236.22,0.03]
[1758067941166,4.23316259,236.23,236.22,0.03]
[1758067942047,30.23316259,236.23,236.22,0.03]
[1758067942763,31.29218663,236.23,236.22,0.03]
[1758067943349,31.29220913,236.23,236.22,0.03]
[1758067943975,31.57653227,236.23,236.22,0.03]
[1758067944277,1.05904654,236.23,236.22,0.03]
[1758067944452,26.0,236.26,236.22,0.03]
[1758067944641,2.79935833,236.31,236.22,0.03]
[1758067944642,10.57912453,236.32,236.22,0.03]
[1758067944978,5.29064014,236.31,236.22,0.03]
[1758067945268,26.0,236.28,236.22,0.03]
[1758067945466,4.2317295,236.31,236.22,0.03]
[1758067945664,1.05880306,236.3,236.22,0.03]
[1758067945872,26.0,236.28,236.22,0.03]
[1758067946169,4.23208768,236.29,236.22,0.03]
[1758067953185,26.0,236.26,236.22,0.03]
[1758067953579,26.71,236.26,236.22,0.03]
[1758067953781,30.94268043,236.26,236.22,0.03]
[1758067954290,0.71,236.25,236.22,0.03]
[1758067954664,30.23268043,236.26,236.22,0.03]
[1758067954864,26.0,236.26,236.22,0.03]
[1758067955589,26.71,236.26,236.22,0.03]
[1758067956078,26.71,236.28,236.22,0.03]
[1758067956386,0.71,236.27,236.22,0.03]
[1758067956889,26.0,236.28,236.22,0.03]
[1758067957694,0.71,236.3,236.22,0.03]
[1758067957990,1.76877644,236.3,236.22,0.03]
[1758067958578,4.94197242,236.3,236.22,0.03]
[1758067958784,1.05874537,236.29,236.23,33.62]
[1758067958986,4.94197242,236.3,236.23,33.62]
[1758067959593,0.71,236.29,236.23,33.62]
[1758067959970,0.77,236.29,236.24,4.2329834]
[1758067960276,0.71,236.28,236.24,4.2329834]
[1758067961383,0.71,236.27,236.24,4.2329834]
[1758067961971,1.8287458,236.29,236.24,4.2329834]
[1758067962169,0.71,236.28,236.24,4.2329834]
[1758067963073,0.71,236.28,236.23,33.62]
[1758067963276,1.7687458,236.28,236.23,33.62]
[1758067963573,4.23233102,236.28,236.23,33.62]
[1758067963893,1.05881574,236.27,236.23,37.85314283]
[1758067964782,5.29130948,236.27,236.22,0.03]
[1758067964974,1.76888398,236.26,236.22,33.57]
[1758067965174,0.71,236.25,236.22,33.57]
[1758067965584,1.05888398,236.26,236.22,33.57]
[1758067965774,1.76888398,236.26,236.22,37.80333756]
[1758067966288,1.76888398,236.26,236.22,33.57]
[1758067968693,6.00153545,236.26,236.22,33.57]
[1758067968899,1.76888398,236.25,236.22,33.57]
[1758067969070,0.71,236.24,236.22,33.57]
[1758067969277,0.71,236.23,236.22,0.03]
[1758067969478,1.76898471,236.23,236.22,0.03]
[1758067969683,27.76898471,236.23,236.22,0.03]
[1758067969983,30.57531633,236.23,236.22,0.03]
[1758067970185,34.80847892,236.23,236.22,0.03]
[1758067970780,1.05898471,236.23,236.22,0.03]
[1758067971102,26.71,236.26,236.22,0.03]
[1758067971299,26.0,236.24,236.22,0.03]
[1758067971598,26.0,236.24,236.22,33.55]
[1758067972098,1.05900677,236.23,236.22,33.55]
[1758067973089,26.0,236.23,236.22,33.55]
[1758067973279,27.05899111,236.23,236.22,33.55]
[1758067973680,1.05899111,236.23,236.22,33.55]
[1758067973879,27.05899111,236.23,236.22,33.55]
[1758067974492,1.05899111,236.23,236.22,33.55]
[1758067975101,1.75899111,236.23,236.22,0.03]
[1758067975491,5.9921537,236.23,236.22,0.03]
[1758067979213,1.75899111,236.23,236.22,0.03]
[1758067980298,1.05899111,236.23,236.22,0.03]
[1758067980614,1.75899111,236.23,236.22,0.03]
[1758067981307,5.9921537,236.23,236.22,0.03]
[1758067984215,31.9921537,236.23,236.22,0.03]
[1758067984417,26.0,236.2,236.19,0.03]
[1758067984613,29.87091171,236.2,236.19,0.03]
[1758067984822,30.57091171,236.2,236.19,0.03]
[1758067986015,63.99091171,236.2,236.19,0.03]
[1758067986216,82.10452911,236.2,236.19,0.03]
[1758067986513,35.0889351,236.2,236.19,0.03]
[1758067987124,68.26461196,236.2,236.19,0.03]
[1758067988115,34.80461196,236.2,236.19,0.03]
[1758067988918,68.24461196,236.2,236.19,0.03]
[1758067989123,68.5289351,236.2,236.19,0.03]
[1758067990816,82.12452911,236.2,236.19,0.03]
[1758067991321,83.82077405,236.2,236.19,0.03]
[1758067993002,13.87991715,236.19,236.17,1e-08]
[1758067993202,14.93890826,236.18,236.17,1e-08]
[1758067993402,19.06210222,236.18,236.17,1e-08]
[1758067993601,21.87402282,236.18,236.17,1e-08]
[1758067993821,38.06870887,236.18,236.17,1e-08]
[1758067994001,18.45082886,236.18,236.17,1e-08]
[1758067994198,64.62082886,236.18,236.17,1e-08]
[1758067994412,24.41233452,236.18,236.17,1e-08]
[1758067994619,57.86156425,236.18,236.17,1e-08]
[1758067994916,57.88156425,236.18,236.17,1e-08]
[1758067995129,44.28597024,236.18,236.17,1e-08]
[1758067995610,10.78597024,236.18,236.17,1e-08]
[1758067996099,44.26597024,236.18,236.17,1e-08]
[1758067996433,44.26654459,236.18,236.17,1e-08]
[1758067996921,26.0,236.15,236.05,13.59559401]
[1758067998114,26.0,236.16,236.05,13.59559401]
[1758067998313,26.0,236.16,236.05,13.09559401]
[1758067998518,26.0,236.16,236.06,14.82673896]
[1758067998822,59.48,236.19,236.06,14.82673896]
[1758067999001,1.05936755,236.18,236.17,0.03]
[1758067999196,27.05936755,236.18,236.17,0.03]
[1758067999612,1.05936755,236.18,236.17,0.03]
[1758067999822,5.29342631,236.18,236.17,0.03]
[1758068000200,5.99342631,236.18,236.17,0.03]
[1758068001120,31.29342631,236.18,236.17,0.03]
[1758068001420,32.27774945,236.18,236.17,0.03]
[1758068001624,39.71774945,236.18,236.17,0.03]
[1758068001820,38.73342631,236.18,236.17,0.03]
[1758068002014,5.29342631,236.18,236.17,0.03]
[1758068006729,5.97342631,236.18,236.17,0.03]
[1758068007415,5.29342631,236.18,236.17,0.03]
[1758068008020,1.05936755,236.18,236.17,0.03]
[1758068008343,4.23316259,236.23,236.17,0.03]
[1758068008522,26.0,236.2,236.17,0.03]
[1758068008709,4.23316259,236.23,236.17,0.03]
[1758068008907,1.05925239,236.22,236.17,0.03]
[1758068009414,5.29260494,236.22,236.17,0.03]
[1758068009625,1.05925239,236.21,236.17,0.03]
[1758068010136,26.0,236.19,236.17,0.03]
[1758068010432,3.86221029,236.18,236.17,0.03]
[1758068010619,4.54221029,236.18,236.17,0.03]
[1758068011032,1.73925239,236.18,236.17,0.03]
[1758068011641,4.91405876,236.18,236.17,0.03]
[1758068011809,5.97331115,236.18,236.17,0.03]
[1758068012012,26.0,236.21,236.17,0.03]
[1758068012212,1.05929149,236.2,236.17,0.03]
[1758068012616,26.0,236.21,236.17,0.03]
[1758068013443,1.05918712,236.2,236.17,0.03]
[1758068013744,4.29280629,236.25,236.17,0.03]
[1758068014043,1.05914169,236.24,236.17,0.03]
[1758068014249,1.05914169,236.23,236.17,0.03]
[1758068014444,1.05914169,236.22,236.17,0.03]
[1758068014745,30.29280629,236.25,236.17,0.03]
[1758068014949,1.05910957,236.24,236.17,13.62559401]
[1758068015249,26.06,236.25,236.17,13.62559401]
[1758068015451,1.0590264,236.24,236.17,13.62559401]
[1758068015739,0.06,236.25,236.17,13.62559401]
[1758068016532,0.06,236.25,236.18,33.56]
[1758068016951,0.06,236.25,236.2,13.59559401]
[1758068017245,0.06,236.25,236.21,33.58]
[1758068017421,0.06,236.25,236.21,33.6]
[1758068018436,0.06,236.25,236.22,13.59559401]
[1758068018809,0.06,236.24,236.22,13.59559401]
[1758068019013,0.06,236.24,236.23,19.52356413]
[1758068019247,0.06,236.24,236.23,53.38788727]
[1758068019747,0.06,236.24,236.23,19.80788727]
[1758068019914,0.06,236.24,236.23,53.40788727]
[1758068020525,0.06,236.24,236.23,19.80788727]
[1758068020725,0.06,236.24,236.23,53.40788727]
[1758068021227,0.06,236.24,236.23,19.80788727]
[1758068021425,0.06,236.24,236.23,53.38788727]
[1758068022144,0.06,236.25,236.23,39.50797012]
[1758068022357,0.06,236.25,236.24,13.59559401]
[1758068022520,0.06,236.25,236.23,17.8287566]
[1758068022728,0.06,236.25,236.24,33.62]
[1758068023049,0.06,236.25,236.24,35.31466393]
[1758068023554,0.74,236.25,236.21,4.23336595]
[1758068023721,0.74,236.25,236.22,33.64]
[1758068023922,0.06,236.25,236.22,33.64]
[1758068024122,0.68,236.24,236.22,33.64]
[1758068024335,0.68,236.23,236.19,17.82931887]
[1758068024657,0.68,236.22,236.2,33.64]
[1758068024840,0.74,236.25,236.2,33.64]
[1758068025046,0.68,236.24,236.2,33.64]
[1758068025742,0.68,236.24,236.2,37.87357005]
[1758068026048,0.68,236.23,236.19,13.59559401]
[1758068026345,0.68,236.22,236.2,33.62]
[1758068026554,0.68,236.22,236.21,33.62]
[1758068026930,0.06,236.25,236.21,33.62]
[1758068027150,0.74,236.25,236.21,33.62]
[1758068028124,0.06,236.25,236.21,33.62]
[1758068028345,0.68,236.24,236.21,33.62]
[1758068028750,0.68,236.24,236.21,37.85349697]
[1758068029335,0.06,236.25,236.21,37.85349697]
[1758068029542,0.74,236.25,236.21,37.85349697]
[1758068032454,0.74,236.25,236.21,33.62]
[1758068032749,0.74,236.25,236.21,37.85347324]
[1758068034148,0.06,236.25,236.21,37.85347324]
[1758068036548,0.06,236.25,236.21,48.43727578]
[1758068037058,0.06,236.25,236.22,13.59559401]
[1758068037245,0.06,236.25,236.24,13.59559401]
[1758068037433,0.06,236.25,236.24,47.07559401]
[1758068038857,0.06,236.25,236.24,51.30857741]
[1758068044479,0.06,236.25,236.24,124.29290055]
[1758068044644,0.06,236.25,236.24,125.9874209]
[1758068044844,1e-08,236.25,236.24,125.9874209]
[1758068048143,1e-08,236.25,236.24,125.9274209]
[1758068049064,1e-08,236.25,236.24,92.5074209]
[1758068049265,1e-08,236.25,236.24,124.21290055]
[1758068049448,1e-08,236.25,236.24,123.92857741]
[1758068049653,0.67000001,236.25,236.24,90.52857741]
[1758068049975,0.67000001,236.25,236.24,123.94857741]
[1758068050162,1e-08,236.25,236.24,123.94857741]
[1758068050565,0.67000001,236.25,236.24,123.94857741]
[1758068051061,1e-08,236.25,236.24,123.94857741]
[1758068053673,1e-08,236.25,236.24,123.97857741]
[1758068054572,0.67000001,236.25,236.24,4.2629834]
[1758068054761,0.67000001,236.25,236.24,37.6629834]
[1758068055568,0.67000001,236.25,236.24,0.03]
[1758068055763,0.67000001,236.25,236.24,33.41]
[1758068056148,1.72888907,236.25,236.24,33.41]
[1758068057254,0.67000001,236.25,236.24,33.41]
[1758068059567,1e-08,236.25,236.24,33.41]
[1758068059773,1e-08,236.25,236.24,47.00559401]
[1758068065065,0.67000001,236.25,236.24,33.35]
[1758068065269,0.67000001,236.25,236.24,72.73]
[1758068065575,0.67000001,236.25,236.24,106.05]
[1758068066577,0.67000001,236.25,236.24,0.03]
[1758068066776,1.72886018,236.25,236.24,33.37]
[1758068069758,1.72886018,236.25,236.24,0.03]
[1758068069964,0.67000001,236.25,236.24,33.35]
[1758068070464,1.72886018,236.25,236.24,33.35]
[1758068070659,0.67000001,236.25,236.24,33.35]
[1758068070888,1.72886018,236.25,236.24,33.35]
[1758068071268,0.67000001,236.25,236.24,33.35]
[1758068071484,1.72886018,236.25,236.24,33.35]
[1758068071682,0.67000001,236.25,236.24,33.35]
[1758068071878,1.72886018,236.25,236.24,33.35]
[1758068072079,0.67000001,236.25,236.24,33.35]
[1758068072275,1.72886018,236.25,236.24,33.35]
[1758068072681,0.67000001,236.25,236.24,33.35]
[1758068072892,1.72886018,236.25,236.24,33.35]
[1758068073077,0.67000001,236.25,236.24,33.35]
[1758068073277,1.72886018,236.25,236.24,33.31]
[1758068073484,0.67000001,236.25,236.24,33.31]
[1758068073792,1.72886018,236.25,236.24,33.31]
[1758068075071,1.72886018,236.25,236.24,0.03]
[1758068078391,0.67000001,236.25,236.24,0.03]
[1758068078597,1.72886018,236.25,236.24,0.03]
[1758068078794,0.67000001,236.25,236.24,0.03]
[1758068079000,1.72886018,236.25,236.24,0.03]
[1758068079193,0.67000001,236.25,236.24,0.03]
[1758068079372,1.72886018,236.25,236.24,0.03]
[1758068079777,1e-08,236.25,236.24,0.03]
[1758068082985,1.98157997,236.25,236.24,0.03]
[1758068083174,1.98157997,236.25,236.24,33.25]
[1758068084312,1.98157997,236.25,236.21,72.73]
[1758068084313,33.27327528,236.25,236.21,72.73]
[1758068084509,1.30157996,236.22,236.21,105.95]
[1758068084813,29.04047104,236.22,236.21,33.25]
[1758068085492,33.27381284,236.22,236.21,33.25]
[1758068085698,33.27381284,236.22,236.21,0.03]
[1758068088280,7.27381284,236.22,236.21,0.03]
[1758068092202,33.27381284,236.22,236.21,0.03]
[1758068092401,5.97223288,236.22,236.21,0.03]
[1758068092581,7.27381284,236.22,236.21,0.03]
[1758068092787,1.05889108,236.22,236.21,0.03]
[1758068093090,26.0,236.23,236.21,0.03]
[1758068093590,29.0406596,236.22,236.21,0.03]
[1758068094301,33.2740014,236.22,236.21,0.03]
[1758068097683,33.27414194,236.22,236.21,0.03]
[1758068099511,32.21492176,236.22,236.21,0.03]
[1758068099817,33.27413553,236.22,236.21,0.03]
[1758068100194,32.21492176,236.22,236.21,0.03]
[1758068100510,26.0,236.22,236.21,0.03]
[1758068100897,1e-08,236.25,236.21,0.03]
[1758068101089,1e-08,236.25,236.21,1.36157996]
[1758068101090,1.0590908,236.25,236.21,1.36157996]
[1758068101515,6.01191339,236.25,236.21,0.03]
[1758068101813,1.0590908,236.25,236.24,1.30157996]
[1758068101998,1.0590908,236.25,236.24,34.47157996]
[1758068102195,1.0290908,236.25,236.24,14.92717397]
[1758068102512,0.06,236.28,236.25,13.59559401]
[1758068102806,0.06,236.28,236.27,1.30157996]
[1758068103902,0.06,236.28,236.25,13.59559401]
[1758068104097,0.06,236.28,236.27,1.30157996]
[1758068104516,0.06,236.28,236.27,5.53402589]
[1758068105611,0.06,236.28,236.27,4.23244593]
[1758068105910,0.06,236.28,236.27,2.03280734]
[1758068106494,0.06,236.28,236.27,6.26525327]
[1758068106704,0.06,236.28,236.27,19.86084728]
[1758068107226,0.06,236.28,236.27,21.55529584]
[1758068109194,0.06,236.28,236.27,34.44703265]
[1758068109398,0.16,236.29,236.28,13.59559401]
[1758068109599,0.16,236.29,236.28,49.01272449]
[1758068110830,0.16,236.29,236.28,49.43595117]
[1758068111302,0.06,236.3,236.29,4.51641082]
[1758068111503,0.06,236.31,236.3,13.87991715]
[1758068111723,0.06,236.31,236.3,15.91272449]
[1758068111924,0.06,236.31,236.3,16.33591534]
[1758068112146,0.06,236.31,236.3,18.03000509]
[1758068113130,0.06,236.31,236.3,17.60681424]
[1758068115815,0.06,236.31,236.3,50.70681424]
[1758068116841,0.06,236.31,236.3,90.30681424]
[1758068117036,0.06,236.31,236.3,123.38681424]
[1758068119524,0.06,236.32,236.31,18.11164665]
[1758068119837,0.06,236.36,236.32,15.91272449]
[1758068120136,0.06,236.36,236.32,121.69272449]
[1758068120722,0.06,236.36,236.32,123.38667075]
[1758068124357,0.06,236.36,236.32,121.35386341]
[1758068124558,0.06,236.36,236.33,87.44979984]
[1758068124731,0.06,236.36,236.35,15.62840135]
[1758068124927,0.06,236.36,236.35,19.85941467]
[1758068125642,0.71,236.36,236.35,19.85941467]
[1758068127939,0.71,236.36,236.35,17.82660733]
[1758068128343,0.71,236.36,236.35,19.85941467]
[1758068130569,0.71,236.36,236.35,92.49941467]
[1758068131551,0.71,236.36,236.35,90.46660733]
[1758068131742,0.71,236.36,236.35,92.49941467]
[1758068132138,0.71,236.36,236.35,72.64]
[1758068132475,6.97366029,236.36,236.3,1.72423325]
[1758068132636,2.03280734,236.32,236.3,1.72423325]
[1758068132837,2.03280734,236.32,236.31,33.04]
[1758068133459,0.65,236.32,236.31,33.04]
[1758068138785,0.06,236.36,236.31,33.04]
[1758068138971,0.06,236.36,236.35,2.03280734]
[1758068139162,0.06,236.36,236.35,33.06]
[1758068139552,0.06,236.36,236.35,35.09280734]
[1758068139780,0.06,236.36,236.35,52.91941467]
[1758068140147,0.06,236.36,236.35,54.61336093]
[1758068140554,1e-08,236.36,236.35,55.3207854]
[1758068141066,1e-08,236.36,236.35,54.61336093]
[1758068141652,1e-08,236.36,236.35,52.91941467]
[1758068142057,1e-08,236.36,236.35,54.61336093]
[1758068143889,1e-08,236.36,236.35,52.58055359]
[1758068144074,1e-08,236.36,236.35,54.61336093]
[1758068146384,1e-08,236.36,236.35,21.55336093]
[1758068146583,1e-08,236.36,236.35,52.89941467]
[1758068146976,0.65000001,236.36,236.35,39.30382066]
[1758068149682,0.65000001,236.36,236.35,37.27101332]
[1758068149880,1e-08,236.36,236.35,39.30382066]
[1758068150587,0.65000001,236.36,236.35,39.30382066]
[1758068150780,1e-08,236.36,236.35,39.30382066]
[1758068152974,1e-08,236.36,236.35,52.89941467]
[1758068154504,1e-08,236.36,236.35,80.87754061]
[1758068154793,1e-08,236.36,236.35,80.59321747]
[1758068155795,1e-08,236.36,236.35,80.87754061]
[1758068160205,0.06,236.38,236.37,13.59559401]
[1758068160518,0.06,236.38,236.37,121.30840134]
[1758068161880,0.06,236.38,236.37,125.53905666]
[1758068162898,0.16,236.39,236.37,125.8233798]
[1758068163103,1e-08,236.39,236.38,16.33577212]
[1758068163406,1e-08,236.39,236.38,149.93577212]
[1758068163600,1e-08,236.39,236.38,151.20616874]
[1758068163806,1e-08,236.39,236.38,149.1733614]
[1758068163990,1e-08,236.39,236.38,155.43664509]
[1758068164191,1e-08,236.39,236.38,153.74320084]
[1758068165316,1e-08,236.41,236.4,15.91272449]
[1758068165486,1e-08,236.41,236.4,48.93272449]
[1758068165817,1e-08,236.41,236.4,48.19887489]
[1758068165988,1e-08,236.41,236.4,52.42899333]
[1758068166510,0.68000001,236.41,236.4,52.42899333]
[1758068167097,1e-08,236.41,236.4,52.42899333]
[1758068169088,0.74,236.43,236.42,13.59559401]
[1758068169289,0.06,236.43,236.42,120.55455173]
[1758068170711,1e-08,236.43,236.42,125.06863546]
[1758068171097,1e-08,236.43,236.42,126.76179299]
[1758068174801,0.2,236.48,236.43,72.63999997]
[1758068175005,1.29895774,236.47,236.44,33.02]
[1758068175195,1.29895774,236.47,236.44,32.3]
[1758068175401,1.97895774,236.46,236.44,32.3]
[1758068175622,0.68,236.45,236.44,32.3]
[1758068175915,1.97895774,236.45,236.44,32.3]
[1758068176430,0.68,236.45,236.44,32.3]
[1758068176597,1.97895774,236.45,236.44,32.3]
[1758068177893,0.68,236.45,236.44,32.3]
[1758068179094,0.68,236.45,236.44,36.5294028]
[1758068180205,0.2,236.48,236.44,37.82836054]
[1758068180416,0.68,236.47,236.44,36.5294028]
[1758068180726,0.68,236.46,236.44,32.3]
[1758068180897,1.97895774,236.45,236.41,4.22993951]
[1758068181101,0.68,236.44,236.42,33.02]
[1758068181333,0.68,236.43,236.42,33.02]
[1758068182206,0.68,236.43,236.41,4.22993951]
[1758068182207,0.68,236.43,236.41,72.7]
[1758068182507,0.68,236.42,236.41,72.7]
[1758068182820,0.68,236.42,236.41,105.72]
[1758068183528,1.29895774,236.45,236.41,105.72]
[1758068183708,0.68,236.42,236.41,105.72]
[1758068184326,1.29895774,236.45,236.41,109.94984374]
[1758068184521,0.68,236.44,236.41,109.94984374]
[1758068184726,0.68,236.43,236.41,109.94984374]
[1758068184905,0.68,236.42,236.41,109.94984374]
[1758068185311,30.42870656,236.48,236.41,109.94984374]
[1758068185312,0.68,236.44,236.41,109.94984374]
[1758068185508,0.68,236.44,236.41,111.24880148]
[1758068186002,1.73801886,236.46,236.43,1.29895774]
[1758068186302,0.2,236.48,236.45,5.52818167]
[1758068186503,0.2,236.48,236.46,33.02]
[1758068186709,0.2,236.48,236.46,34.31895774]
[1758068187840,0.2,236.48,236.47,4.22886624]